Service area,Service sub division,TVBC Service,Expense type,Detailed expense type,TVBC account code,Date Paid,Transaction Reference, Nett Value ,Supplier Name
Central Services to the Public,Management & Support Services,Estates and Economic Development ,Premises related Expenditure,Energy Costs,Gas,24/08/2017,221331,-878.02,Total Gas & Power Ltd
Environmental & Regulatory,Community Development,Community and Leisure ,Supplies & Services,"Equipment, Furniture & Materials",Purchase Equip + Materials,11/08/2017,184071,-800,Hampshire Police Authority
Cultural & Related,Culture & Heritage,Community and Leisure ,Supplies & Services,Miscellaneous Expenses,Bank Charges,07/08/2017,220618,-759,Yes Pay International Ltd
Central Services to the Public,Management & Support Services,Estates and Economic Development ,Premises related Expenditure,Energy Costs,Gas,24/08/2017,221330,-589.64,Total Gas & Power Ltd
Cultural & Related,Recreation & Sport,Estates and Economic Development ,Premises related Expenditure,Water Services,Water And Sewerage Charges,03/08/2017,219340,-622.44,Business Stream
Planning & Development,Economic Development,Estates and Economic Development ,Supplies & Services,Services,Training Courses,17/08/2017,221086,500,Lynx Uk Ltd
Cultural & Related,Culture & Heritage,Community and Leisure ,Supplies & Services,Services,Project Consultancy - Policy,24/08/2017,221581,500,Ruby Slippers/Enchanted
Central Services to the Public,Management & Support Services,Environmental,Supplies & Services,"Printing, Stationery & General Office Expenses",Photocopying Costs,17/08/2017,221314,421.33,Ricoh Uk Ltd
Environmental & Regulatory,Regulatory Services,Estates and Economic Development ,Supplies & Services,"Equipment, Furniture & Materials",Purchase Equip + Materials,31/08/2017,221795,415.2,Whiffaway Ltd
Environmental & Regulatory,Regulatory Services,Estates and Economic Development ,Supplies & Services,"Printing, Stationery & General Office Expenses",Courier Costs,31/08/2017,221795,10.5,Whiffaway Ltd
Central Services to the Public,Management & Support Services,Estates and Economic Development ,Supplies & Services,"Printing, Stationery & General Office Expenses",Photocopying Costs,03/08/2017,219922,430.92,Ricoh Uk Ltd
Cultural & Related,Open Spaces,Community and Leisure ,Supplies & Services,"Equipment, Furniture & Materials",Purchase Equip + Materials,31/08/2017,222202,440,Centrewire Ltd
Environmental & Regulatory,Waste management,Environmental,Supplies & Services,"Equipment, Furniture & Materials",Purchase Equip + Materials,31/08/2017,220648,441.6,Daniels Healthcare Ltd
Environmental & Regulatory,Regulatory Services,Housing and Environmental Health ,Third Party Payments,Other Establishments,Private Contractors,10/08/2017,220167,536,Cedar Pest Ltd
Cultural & Related,Recreation & Sport,Community and Leisure ,Premises related Expenditure,Rents,Premises Hire,31/08/2017,222249,541,Qm Sports Centre
Environmental & Regulatory,Street Cleansing (not chargeable to Highways),Environmental,Supplies & Services,"Equipment, Furniture & Materials",Purchase Equip + Materials,24/08/2017,218868,451.9,Johnston Sweepers Ltd
Central Services to the Public,Management & Support Services,Estates and Economic Development ,Supplies & Services,"Equipment, Furniture & Materials",Equipment Hire,24/08/2017,221537,455,Woosh Washrooms
Environmental & Regulatory,Regulatory Services,Housing and Environmental Health ,Supplies & Services,Grants and subscriptions,Capital Grants,23/08/2017,221703,556,Personal data - Data Protection Act 1998
Central Services to the Public,Management & Support Services,IT,Supplies & Services,"Equipment, Furniture & Materials",IT Supp and Serv AMP,31/08/2017,220467,463.92,Probrand Ltd
Central Services to the Public,Management & Support Services,Environmental,Transport Related Expenditure,Direct Transport Costs,Workshop Consumables,10/08/2017,220165,464.25,Boc  Ltd
Cultural & Related,Culture & Heritage,Community and Leisure ,Supplies & Services,Services,Project Consultancy - Policy,24/08/2017,221521,465,Fool'S Paradise Ltd
Cultural & Related,Culture & Heritage,Community and Leisure ,Supplies & Services,Catering,Non-Contract Catering,17/08/2017,219414,471.37,Carlsberg Uk Ltd
Environmental & Regulatory,Waste management,Environmental,Transport Related Expenditure,Direct Transport Costs,Repair Materials,10/08/2017,220659,471.4,Terberg Matec Uk Limited
Central Services to the Public,Elections,Legal & Democratic,Premises related Expenditure,Rents,Premises Hire,03/08/2017,217946,567.26,Personal Best Education
External Trading Accounts,Business Parks,Estates and Economic Development ,Premises related Expenditure,Grounds Maintenance Costs,Grounds Maintenance Contracts,24/08/2017,221833,473.19,Landmarks Sustainability Ltd
Cultural & Related,Open Spaces,Environmental,Supplies & Services,Communications & Computing,Mobile Telephone Charges,31/08/2017,222075,131.68,Vodafone Limited
Environmental & Regulatory,Street Cleansing (not chargeable to Highways),Environmental,Supplies & Services,Communications & Computing,Mobile Telephone Charges,31/08/2017,222075,139.44,Vodafone Limited
Environmental & Regulatory,Waste management,Environmental,Supplies & Services,Communications & Computing,Mobile Telephone Charges,31/08/2017,222075,132.92,Vodafone Limited
Central Services to the Public,Management & Support Services,Environmental,Supplies & Services,Communications & Computing,Mobile Telephone Charges,31/08/2017,222075,36.03,Vodafone Limited
Central Services to the Public,Management & Support Services,Environmental,Supplies & Services,Communications & Computing,Mobile Telephone Charges,31/08/2017,222075,36.86,Vodafone Limited
Cultural & Related,Culture & Heritage,Community and Leisure ,Supplies & Services,Services,Project Consultancy - Policy,31/08/2017,221572,575,The Artroom
Cultural & Related,Open Spaces,Environmental,Supplies & Services,"Equipment, Furniture & Materials",Purchase Equip + Materials,31/08/2017,220594,480,Raymond Brown Minerals & Recycling Ltd
Cultural & Related,Culture & Heritage,Community and Leisure ,Supplies & Services,Catering,Non-Contract Catering,31/08/2017,222193,485.81,Carlsberg Uk Ltd
Cultural & Related,Culture & Heritage,Estates and Economic Development ,Supplies & Services,Miscellaneous Expenses,Waste Collection,17/08/2017,221104,145.38,Suez Recycling And Recovery Uk Ltd
Central Services to the Public,Management & Support Services,Estates and Economic Development ,Supplies & Services,Miscellaneous Expenses,Waste Collection,17/08/2017,221104,341.78,Suez Recycling And Recovery Uk Ltd
Central Services to the Public,Management & Support Services,Estates and Economic Development ,Supplies & Services,"Equipment, Furniture & Materials",Equipment Hire,03/08/2017,220153,490,Hampshire Plant & Access Limited
Cultural & Related,Tourism,Estates and Economic Development ,Supplies & Services,Grants & Subscriptions,Contributions,17/08/2017,221074,592,Bulpitt Print Ltd
Planning & Development,Development Control,Planning & Building,Supplies & Services,Services,Project Consultancy - Policy,03/08/2017,219291,495,Jpp Consulting Civil & Structural Engineers
Cultural & Related,Culture & Heritage,Community and Leisure ,Supplies & Services,Services,Project Consultancy - Policy,10/08/2017,220784,496,Rhubarb Theatre
Planning & Development,Building Control,Planning & Building,Supplies & Services,Communications & Computing,Computer Hardware,17/08/2017,221054,497.25,Temple Knight Plc
Planning & Development,Development Control,Planning & Building,Supplies & Services,Miscellaneous Expenses,Planning Appeal Costs,03/08/2017,217697,500,Sharpe Pritchard
Central Services to the Public,Local Tax Collection,Revenues,Supplies & Services,Services,Professional Fees,17/08/2017,221118,505,Inform Cpi Ltd
External Trading Accounts,Business Parks,Estates and Economic Development ,Premises related Expenditure,Water Services,Water And Sewerage Charges,17/08/2017,221127,606.23,Business Stream
Cultural & Related,Culture & Heritage,Community and Leisure ,Supplies & Services,Catering,Caf�/ bar consumables,17/08/2017,217463,2.52,Brake Bros Ltd
Cultural & Related,Culture & Heritage,Community and Leisure ,Supplies & Services,Catering,Non-Contract Catering,17/08/2017,217463,435.01,Brake Bros Ltd
Cultural & Related,Culture & Heritage,Community and Leisure ,Supplies & Services,Catering,Caf� Catering supplies,17/08/2017,217463,103.36,Brake Bros Ltd
Central Services to the Public,Management & Support Services,Estates and Economic Development ,Transport Related Expenditure,Direct Transport Costs,Diesel,24/08/2017,221579,16.99,Fuel Card Services Ltd
Cultural & Related,Open Spaces,Environmental,Transport Related Expenditure,Direct Transport Costs,Petrol,24/08/2017,221579,494.53,Fuel Card Services Ltd
Central Services to the Public,Management & Support Services,Legal & Democratic,Employees,Indirect Employee Expenses,Agency Staff - Waged Posts,17/08/2017,220569,517.5,Venn Group Ltd
External Trading Accounts,Business Parks,Estates and Economic Development ,Supplies & Services,Communications & Computing,Land Line Telephone Charges,03/08/2017,220030,26.56,Virgin Media Payments Ltd
Cultural & Related,Culture & Heritage,Estates and Economic Development ,Supplies & Services,Communications & Computing,Land Line Telephone Charges,03/08/2017,220030,39,Virgin Media Payments Ltd
Cultural & Related,Culture & Heritage,Estates and Economic Development ,Supplies & Services,Communications & Computing,Land Line Telephone Charges,03/08/2017,220030,39.92,Virgin Media Payments Ltd
Central Services to the Public,Management & Support Services,IT,Supplies & Services,Communications & Computing,Communication Links,03/08/2017,220030,26,Virgin Media Payments Ltd
Central Services to the Public,Management & Support Services,IT,Supplies & Services,Communications & Computing,Communication Links,03/08/2017,220030,67,Virgin Media Payments Ltd
Cultural & Related,Recreation & Sport,Community and Leisure ,Supplies & Services,Communications & Computing,Land Line Telephone Charges,03/08/2017,220030,26,Virgin Media Payments Ltd
Cultural & Related,Recreation & Sport,Community and Leisure ,Supplies & Services,Communications & Computing,Land Line Telephone Charges,03/08/2017,220030,13.03,Virgin Media Payments Ltd
Cultural & Related,Recreation & Sport,Community and Leisure ,Supplies & Services,Communications & Computing,Land Line Telephone Charges,03/08/2017,220030,13,Virgin Media Payments Ltd
Cultural & Related,Culture & Heritage,Community and Leisure ,Supplies & Services,Communications & Computing,Communication Links,03/08/2017,220030,74.12,Virgin Media Payments Ltd
"Highways, Roads & Transport",Parking Services,Plan Pol & Transport,Supplies & Services,Communications & Computing,Alarm Lines,03/08/2017,220030,37,Virgin Media Payments Ltd
Central Services to the Public,Management & Support Services,Environmental,Supplies & Services,Communications & Computing,Land Line Telephone Charges,03/08/2017,220030,66.93,Virgin Media Payments Ltd
Central Services to the Public,Emergency Planning,Corporate & Democratic,Supplies & Services,Communications & Computing,Land Line Telephone Charges,03/08/2017,220030,91,Virgin Media Payments Ltd
External Trading Accounts,Business Parks,Estates and Economic Development ,Supplies & Services,Communications & Computing,Land Line Telephone Charges,31/08/2017,222086,28.88,Virgin Media Payments Ltd
Cultural & Related,Culture & Heritage,Estates and Economic Development ,Supplies & Services,Communications & Computing,Land Line Telephone Charges,31/08/2017,222086,39,Virgin Media Payments Ltd
Cultural & Related,Culture & Heritage,Estates and Economic Development ,Supplies & Services,Communications & Computing,Land Line Telephone Charges,31/08/2017,222086,40.12,Virgin Media Payments Ltd
Central Services to the Public,Management & Support Services,IT,Supplies & Services,Communications & Computing,Communication Links,31/08/2017,222086,26,Virgin Media Payments Ltd
Central Services to the Public,Management & Support Services,IT,Supplies & Services,Communications & Computing,Communication Links,31/08/2017,222086,67,Virgin Media Payments Ltd
Cultural & Related,Recreation & Sport,Community and Leisure ,Supplies & Services,Communications & Computing,Land Line Telephone Charges,31/08/2017,222086,26,Virgin Media Payments Ltd
Cultural & Related,Recreation & Sport,Community and Leisure ,Supplies & Services,Communications & Computing,Land Line Telephone Charges,31/08/2017,222086,13.76,Virgin Media Payments Ltd
Cultural & Related,Recreation & Sport,Community and Leisure ,Supplies & Services,Communications & Computing,Land Line Telephone Charges,31/08/2017,222086,13,Virgin Media Payments Ltd
Cultural & Related,Culture & Heritage,Community and Leisure ,Supplies & Services,Communications & Computing,Communication Links,31/08/2017,222086,74.05,Virgin Media Payments Ltd
"Highways, Roads & Transport",Parking Services,Plan Pol & Transport,Supplies & Services,Communications & Computing,Alarm Lines,31/08/2017,222086,37.07,Virgin Media Payments Ltd
Central Services to the Public,Management & Support Services,Environmental,Supplies & Services,Communications & Computing,Land Line Telephone Charges,31/08/2017,222086,67.34,Virgin Media Payments Ltd
Central Services to the Public,Emergency Planning,Corporate & Democratic,Supplies & Services,Communications & Computing,Land Line Telephone Charges,31/08/2017,222086,91,Virgin Media Payments Ltd
Environmental & Regulatory,Regulatory Services,Legal & Democratic,Supplies & Services,Miscellaneous Expenses,Data Access Requests,10/08/2017,220170,607.75,Harwin Associates Ltd
Cultural & Related,Culture & Heritage,Community and Leisure ,Supplies & Services,"Equipment, Furniture & Materials",Purchase Equip + Materials,10/08/2017,220578,530,Wake'S Decorating Ltd
Cultural & Related,Recreation & Sport,Community and Leisure ,Premises related Expenditure,Grounds Maintenance Costs,Gm - Additional Works,31/08/2017,221815,535,Anton Office Supplies
Central Services to the Public,Management & Support Services,Legal & Democratic,Employees,Indirect Employee Expenses,Agency Staff - Waged Posts,03/08/2017,219120,540,Venn Group Ltd
Central Services to the Public,Management & Support Services,Legal & Democratic,Employees,Indirect Employee Expenses,Agency Staff - Waged Posts,17/08/2017,221093,540,Venn Group Ltd
Central Services to the Public,Management & Support Services,Legal & Democratic,Employees,Indirect Employee Expenses,Agency Staff - Waged Posts,24/08/2017,221552,540,Venn Group Ltd
Environmental & Regulatory,Regulatory Services,Housing and Environmental Health ,Supplies & Services,Miscellaneous Expenses,Miscellaneous Capital Expenses,17/08/2017,221096,650,Access Independent Ltd
Cultural & Related,Culture & Heritage,Estates and Economic Development ,Premises related Expenditure,Water Services,Water And Sewerage Charges,10/08/2017,220605,651.01,Business Stream
Central Services to the Public,Management & Support Services,Estates and Economic Development ,Supplies & Services,Miscellaneous Expenses,Advertising,17/08/2017,221233,545,Newsquest Media Group Ltd
Central Services to the Public,Management & Support Services,Estates and Economic Development ,Supplies & Services,"Equipment, Furniture & Materials",Purchase Materials (Job Cost),17/08/2017,221224,550,Andover Glass Works Ltd
Central Services,Corporate & Democratic Core,Corporate & Democratic,Supplies & Services,Communications & Computing,Land Line Telephone Charges,03/08/2017,218751,550,Invicta Lifeline Ltd
Central Services,Corporate & Democratic Core,Corporate & Democratic,Supplies & Services,Communications & Computing,Land Line Telephone Charges,03/08/2017,218752,550,Invicta Lifeline Ltd
Cultural & Related,Culture & Heritage,Community and Leisure ,Supplies & Services,Services,Project Consultancy - Policy,24/08/2017,221566,678,Ganesh Unlimited
Cultural & Related,Open Spaces,Community and Leisure ,Premises related Expenditure,Grounds Maintenance Costs,Gm - Additional Works,03/08/2017,219146,567.32,Greenfix Soil Stablistn & Ersn Cntrl Spclsts
"Highways, Roads & Transport",Highways and roads - maintenance,Plan Pol & Transport,Premises related Expenditure,Repairs Alterations & Maintenance of Buildings,Highways Repairs,03/08/2017,220262,570,Mursell & Company (Newbury) Ltd
Environmental & Regulatory,"Cemetery, Cremation and Mortuary Services",Community and Leisure ,Premises related Expenditure,Repairs Alterations & Maintenance of Buildings,Estates premises costs - AMP,17/08/2017,221112,686,Building & Design Ltd
"Highways, Roads & Transport",Parking Services,Plan Pol & Transport,Supplies & Services,"Equipment, Furniture & Materials",Purchase Equip + Materials,24/08/2017,221524,574.84,Storm Technologies
Central Services to the Public,Management & Support Services,Estates and Economic Development ,Premises related Expenditure,Repairs Alterations & Maintenance of Buildings,Planned Maintenance - Non Est,17/08/2017,221041,575.2,Btu Installation & Maintenance Ltd
Central Services to the Public,Local Tax Collection,Revenues,Supplies & Services,"Equipment, Furniture & Materials",Maintenance Equip + Materials,03/08/2017,219426,58,Twofold Limited
Central Services to the Public,Local Tax Collection,Revenues,Supplies & Services,"Equipment, Furniture & Materials",Maintenance Equip + Materials,03/08/2017,219426,232,Twofold Limited
Housing Services,Housing Benefits ,Revenues,Supplies & Services,"Equipment, Furniture & Materials",Maintenance Equip + Materials,03/08/2017,219426,145,Twofold Limited
Central Services to the Public,Local Tax Collection,Revenues,Supplies & Services,"Equipment, Furniture & Materials",Maintenance Equip + Materials,03/08/2017,219426,145,Twofold Limited
Cultural & Related,Culture & Heritage,Estates and Economic Development ,Premises related Expenditure,Repairs Alterations & Maintenance of Buildings,Building Maint - Non Estates,03/08/2017,219961,585.43,Basingstoke Fire Protection Ltd
Central Services to the Public,Management & Support Services,Environmental,Transport Related Expenditure,Direct Transport Costs,Workshop Consumables,10/08/2017,220673,445.93,M D Services
Central Services to the Public,Management & Support Services,Environmental,Transport Related Expenditure,Direct Transport Costs,Repair Materials,10/08/2017,220673,140.94,M D Services
"Highways, Roads & Transport",Parking Services,Plan Pol & Transport,Supplies & Services,"Equipment, Furniture & Materials",Purchase Equip + Materials,10/08/2017,220657,589.62,Cale Briparc Ltd
Environmental & Regulatory,Regulatory Services,Legal & Democratic,Supplies & Services,"Equipment, Furniture & Materials",Purchase Equip + Materials,10/08/2017,220851,590.9,Newauto Ltd T/A Mogo (Uk)
Central Services to the Public,Management & Support Services,Community and Leisure ,Supplies & Services,"Printing, Stationery & General Office Expenses",Photocopying Costs,17/08/2017,221308,592.11,Ricoh Uk Ltd
Central Services to the Public,Local Tax Collection,Revenues,Supplies & Services,"Printing, Stationery & General Office Expenses",External Printing,24/08/2017,221821,268.2,Hound Envelopes Limited
Housing Services,Housing Benefits ,Revenues,Supplies & Services,"Printing, Stationery & General Office Expenses",External Printing,24/08/2017,221821,324.96,Hound Envelopes Limited
Central Services to the Public,Management & Support Services,IT,Supplies & Services,"Equipment, Furniture & Materials",IT Supp and Serv AMP,31/08/2017,215905,597.5,Storm Technologies
Environmental & Regulatory,Waste management,Environmental,Employees,Indirect Employee Expenses,Agency Staff - Waged Posts,17/08/2017,218773,598.56,Simple Recruitment Services Ltd
Environmental & Regulatory,Waste management,Environmental,Supplies & Services,"Equipment, Furniture & Materials",Maintenance Equip + Materials,31/08/2017,221105,603.85,Egbert H Taylor & Co Ltd
Cultural & Related,Open Spaces,Community and Leisure ,Supplies & Services,"Equipment, Furniture & Materials",Purchase Equip + Materials,17/08/2017,221066,604.5,Streetmaster (South Wales) Ltd
Cultural & Related,Open Spaces,Environmental,Supplies & Services,Miscellaneous Expenses,Waste Collection,03/08/2017,218652,605.92,Raymond Brown Minerals & Recycling Ltd
Environmental & Regulatory,Regulatory Services,Estates and Economic Development ,Premises related Expenditure,Water Services,Water And Sewerage Charges,17/08/2017,220859,730.73,Business Stream
Central Services to the Public,Management & Support Services,Estates and Economic Development ,Supplies & Services,"Equipment, Furniture & Materials",Purchase Materials (Job Cost),17/08/2017,221225,610,Ajwilsons Joinery Ltd
Central Services to the Public,Management & Support Services,Estates and Economic Development ,Premises related Expenditure,Water Services,Water And Sewerage Charges,31/08/2017,222191,735.2,Business Stream
Central Services to the Public,Elections,Legal & Democratic,Supplies & Services,"Printing, Stationery & General Office Expenses",Postage Costs,24/08/2017,221725,613.49,Financial Data Management Plc
Central Services to the Public,Management & Support Services,Estates and Economic Development ,Third Party Payments,Other Establishments,Private Contractors,03/08/2017,219959,614.86,Options Flooring Ltd
Planning & Development,Development Control,Planning & Building,Supplies & Services,Miscellaneous Expenses,Planning Appeal Costs,03/08/2017,219989,618,Allen Planning Ltd
Planning & Development,Development Control,Planning & Building,Supplies & Services,"Printing, Stationery & General Office Expenses",Photocopying Costs,24/08/2017,221310,620.73,Ricoh Uk Ltd
Planning & Development,Economic Development,Estates and Economic Development ,Supplies & Services,Services,Training Courses,03/08/2017,219915,750,Humphrey & Crockett Ltd
Planning & Development,Economic Development,Estates and Economic Development ,Supplies & Services,Grants & Subscriptions,Grants,23/08/2017,221700,750,Personal data - Data Protection Act 1998
Cultural & Related,Recreation & Sport,Estates and Economic Development ,Premises related Expenditure,Water Services,Water And Sewerage Charges,17/08/2017,221128,758.5,Business Stream
Cultural & Related,Recreation & Sport,Community and Leisure ,Premises related Expenditure,Rents,Premises Hire,17/08/2017,221069,741.66,Basingstoke & Deane Comm Leisure Ltd
Environmental & Regulatory,Waste management,Environmental,Transport Related Expenditure,Direct Transport Costs,Repair Materials,03/08/2017,219973,635.97,Dennis Eagle Ltd
Cultural & Related,Culture & Heritage,Community and Leisure ,Supplies & Services,Catering,Non-Contract Catering,31/08/2017,222046,636.84,Carlsberg Uk Ltd
Cultural & Related,Culture & Heritage,Community and Leisure ,Supplies & Services,Catering,Non-Contract Catering,17/08/2017,216838,638.69,Carlsberg Uk Ltd
Cultural & Related,Culture & Heritage,Community and Leisure ,Supplies & Services,"Printing, Stationery & General Office Expenses",Postage Costs,03/08/2017,219648,638.87,Royal Mail
External Trading Accounts,Business Parks,Estates and Economic Development ,Supplies & Services,Services,Professional Fees,03/08/2017,220158,650,The Genesis Design Studio Ltd
Central Services to the Public,Management & Support Services,Environmental,Supplies & Services,Services,Training Courses,03/08/2017,220270,650,Pure Human Resources Ltd
Central Services to the Public,Management & Support Services,Environmental,Transport Related Expenditure,Direct Transport Costs,Oils,10/08/2017,220562,658.84,Fuchs Lubricants (Uk) Plc
Central Services to the Public,Management & Support Services,Estates and Economic Development ,Third Party Payments,Other Establishments,Private Contractors,03/08/2017,219960,660,Waterside Blinds
Environmental & Regulatory,Waste management,Environmental,Employees,Indirect Employee Expenses,Agency Staff - Waged Posts,24/08/2017,220567,666.65,Simple Recruitment Services Ltd
Cultural & Related,Open Spaces,Community and Leisure ,Premises related Expenditure,Grounds Maintenance Costs,Gm - Additional Works,10/08/2017,220465,670,Kingcombe Aquacare Ltd
Cultural & Related,Open Spaces,Community and Leisure ,Premises related Expenditure,Grounds Maintenance Costs,Gm - Additional Works,24/08/2017,221801,670,Personal data - Data Protection Act 1998
Cultural & Related,Open Spaces,Community and Leisure ,Premises related Expenditure,Grounds Maintenance Costs,Gm - Additional Works,31/08/2017,222047,675,Austin Foot Ecology
Central Services to the Public,Management & Support Services,Estates and Economic Development ,Supplies & Services,Communications & Computing,Telephone Tracking System,10/08/2017,220468,42,Teletrac Navman (Uk) Ltd
Environmental & Regulatory,Regulatory Services,Estates and Economic Development ,Supplies & Services,Communications & Computing,Telephone Tracking System,10/08/2017,220468,12,Teletrac Navman (Uk) Ltd
Environmental & Regulatory,Regulatory Services,Housing and Environmental Health ,Supplies & Services,Communications & Computing,Telephone Tracking System,10/08/2017,220468,6,Teletrac Navman (Uk) Ltd
Environmental & Regulatory,Regulatory Services,Housing and Environmental Health ,Supplies & Services,Communications & Computing,Telephone Tracking System,10/08/2017,220468,12,Teletrac Navman (Uk) Ltd
Cultural & Related,Open Spaces,Community and Leisure ,Supplies & Services,Communications & Computing,Telephone Tracking System,10/08/2017,220468,6,Teletrac Navman (Uk) Ltd
Cultural & Related,Open Spaces,Community and Leisure ,Supplies & Services,Communications & Computing,Telephone Tracking System,10/08/2017,220468,6,Teletrac Navman (Uk) Ltd
"Highways, Roads & Transport",Parking Services,Plan Pol & Transport,Supplies & Services,Communications & Computing,Telephone Tracking System,10/08/2017,220468,12,Teletrac Navman (Uk) Ltd
Cultural & Related,Open Spaces,Environmental,Supplies & Services,Communications & Computing,Telephone Tracking System,10/08/2017,220468,246,Teletrac Navman (Uk) Ltd
Environmental & Regulatory,Street Cleansing (not chargeable to Highways),Environmental,Supplies & Services,Communications & Computing,Telephone Tracking System,10/08/2017,220468,168,Teletrac Navman (Uk) Ltd
Environmental & Regulatory,Waste management,Environmental,Supplies & Services,Communications & Computing,Telephone Tracking System,10/08/2017,220468,138,Teletrac Navman (Uk) Ltd
Environmental & Regulatory,Waste management,Environmental,Supplies & Services,Communications & Computing,Telephone Tracking System,10/08/2017,220468,12,Teletrac Navman (Uk) Ltd
Central Services to the Public,Management & Support Services,Environmental,Supplies & Services,Communications & Computing,Telephone Tracking System,10/08/2017,220468,18,Teletrac Navman (Uk) Ltd
Cultural & Related,Recreation & Sport,Community and Leisure ,Premises related Expenditure,Grounds Maintenance Costs,Gm - Additional Works,10/08/2017,220024,680,Fernden Construction (Winchester) Ltd
External Trading Accounts,Property Investments,Estates and Economic Development ,Third Party Payments,Other Establishments,Private Contractors,16/08/2017,220585,681,Gdr Gates & Doors Ltd
Central Services to the Public,Management & Support Services,Estates and Economic Development ,Premises related Expenditure,Repairs Alterations & Maintenance of Buildings,Estates premises costs - AMP,17/08/2017,221100,685,Alarms & Electrical (Devizes) Ltd
External Trading Accounts,Business Parks,Estates and Economic Development ,Premises related Expenditure,Repairs Alterations & Maintenance of Buildings,Estates premises costs - AMP,24/08/2017,221542,690,Barrett Corp & Harrington Ltd
Planning & Development,Economic Development,Estates and Economic Development ,Supplies & Services,Services,Training Courses,23/08/2017,221538,833.33,Mrt Castings Ltd
Environmental & Regulatory,Waste management,Environmental,Transport Related Expenditure,Direct Transport Costs,External Garages,03/08/2017,220240,694.63,Vishay Pm Onboard
Environmental & Regulatory,Street Cleansing (not chargeable to Highways),Environmental,Transport Related Expenditure,Direct Transport Costs,External Garages,02/08/2017,219112,198,Bodyshop24
Environmental & Regulatory,Street Cleansing (not chargeable to Highways),Environmental,Transport Related Expenditure,Direct Transport Costs,Repair Materials,02/08/2017,219112,499.3,Bodyshop24
Central Services to the Public,Local Tax Collection,Revenues,Supplies & Services,Services,Professional Fees,03/08/2017,220161,16.58,Ross & Roberts
Cultural & Related,Open Spaces,Environmental,Transport Related Expenditure,Direct Transport Costs,Repair Materials,03/08/2017,219975,731.9,R Hunt (Agricultural Engineers) Ltd
External Trading Accounts,Business Parks,Estates and Economic Development ,Supplies & Services,Miscellaneous Expenses,Waste Collection,24/08/2017,221832,737.1,Basingstoke Skip Hire & Sthrn Waste Mgt Ltd
Central Services to the Public,Management & Support Services,IT,Supplies & Services,"Equipment, Furniture & Materials",Maintenance Equip + Materials,24/08/2017,221723,740.62,Quadrant Security Group Ltd
Cultural & Related,Open Spaces,Environmental,Transport Related Expenditure,Direct Transport Costs,Repair Materials,17/08/2017,221139,743.75,Loxston Groundcare Ltd
Cultural & Related,Tourism,Estates and Economic Development ,Supplies & Services,Miscellaneous Expenses,Promotions / Special Events,31/08/2017,222247,750,Apl Media Ltd
Environmental & Regulatory,Regulatory Services,Estates and Economic Development ,Supplies & Services,Grants & Subscriptions,Contributions,17/08/2017,220584,750,Stonegate Pub Company
Cultural & Related,Open Spaces,Community and Leisure ,Premises related Expenditure,Grounds Maintenance Costs,Gm - Additional Works,10/08/2017,220464,750,Kingcombe Aquacare Ltd
Central Services to the Public,Management & Support Services,Plan Pol & Transport,Premises related Expenditure,Repairs Alterations & Maintenance of Buildings,General Repairs,24/08/2017,221691,750,Total Surveys Ltd
Central Services,Corporate & Democratic Core,Corporate & Democratic,Supplies & Services,Services,Professional Advice,10/08/2017,218164,750,Dc Commercial Solicitors
Central Services,Corporate & Democratic Core,Corporate & Democratic,Supplies & Services,Services,Professional Advice,10/08/2017,220612,750,Dc Commercial Solicitors
Cultural & Related,Culture & Heritage,Community and Leisure ,Supplies & Services,Catering,Non-Contract Catering,17/08/2017,221305,751.89,Carlsberg Uk Ltd
Planning & Development,Development Control,Planning & Building,Employees,Indirect Employee Expenses,Temporary Staff,17/08/2017,221047,757.44,Oyster Partnership
Environmental & Regulatory,Street Cleansing (not chargeable to Highways),Environmental,Premises related Expenditure,Rents,Rents,17/08/2017,220798,757.44,Aster Communities
Environmental & Regulatory,Street Cleansing (not chargeable to Highways),Environmental,Premises related Expenditure,Rents,Rents,17/08/2017,221256,757.44,Aster Communities
Cultural & Related,Culture & Heritage,Community and Leisure ,Supplies & Services,Miscellaneous Expenses,Bank Charges,07/08/2017,165414,759,Yes Pay International Ltd
Central Services to the Public,Management & Support Services,Legal & Democratic,Employees,Indirect Employee Expenses,Recruitment Consultants,03/08/2017,216826,762.5,Ceb Shl Group Limited
"Highways, Roads & Transport",Public Transport,Plan Pol & Transport,Third Party Payments,Transport Operators in Respect of Concessionary Fares,Voluntary Orgs Reimbursement,10/08/2017,220871,915,Romsey Good Neighbours
Central Services to the Public,Management & Support Services,Revenues,Supplies & Services,"Equipment, Furniture & Materials",Equipment Lease Rentals,10/08/2017,220680,785.7,Pitney Bowes Finance Ltd
Cultural & Related,Culture & Heritage,Community and Leisure ,Supplies & Services,"Printing, Stationery & General Office Expenses",Postage Costs,17/08/2017,221080,787,Royal Mail
Central Services to the Public,Management & Support Services,Finance,Supplies & Services,"Printing, Stationery & General Office Expenses",Postage Costs,03/08/2017,219339,791.3,Whistl Uk Ltd
Environmental & Regulatory,Community Development,Community and Leisure ,Supplies & Services,"Equipment, Furniture & Materials",Purchase Equip + Materials,11/08/2017,221083,800,Hampshire Police Authority
Planning & Development,Development Control,Planning & Building,Supplies & Services,Communications & Computing,Software Maintenance,10/08/2017,219652,800,Idox Solutions
Central Services to the Public,Local Tax Collection,Revenues,Supplies & Services,"Printing, Stationery & General Office Expenses",Postage Costs,17/08/2017,221079,38.34,Royal Mail
Central Services to the Public,Local Tax Collection,Revenues,Supplies & Services,"Printing, Stationery & General Office Expenses",Postage Costs,17/08/2017,221079,538.38,Royal Mail
Housing Services,Housing Benefits ,Revenues,Supplies & Services,"Printing, Stationery & General Office Expenses",Postage Costs,17/08/2017,221079,112.55,Royal Mail
Central Services to the Public,Local Tax Collection,Revenues,Supplies & Services,"Printing, Stationery & General Office Expenses",Postage Costs,17/08/2017,221079,112.56,Royal Mail
Environmental & Regulatory,Waste management,Environmental,Transport Related Expenditure,Direct Transport Costs,External Garages,17/08/2017,221124,584.5,Dennis Eagle Ltd
Environmental & Regulatory,Waste management,Environmental,Transport Related Expenditure,Direct Transport Costs,Repair Materials,17/08/2017,221124,219.79,Dennis Eagle Ltd
Central Services to the Public,Management & Support Services,Legal & Democratic,Employees,Indirect Employee Expenses,Agency Staff - Waged Posts,03/08/2017,218630,810,Venn Group Ltd
Central Services to the Public,Management & Support Services,Estates and Economic Development ,Premises related Expenditure,Repairs Alterations & Maintenance of Buildings,Building Maint - Non Estates,17/08/2017,221098,825,Solent Fire Protection Services Ltd
Planning & Development,Development Control,Planning & Building,Supplies & Services,Services,Project Consultancy - Policy,31/08/2017,222256,825,Reading Agricultural Consultants Ltd
Central Services to the Public,Management & Support Services,Legal & Democratic,Supplies & Services,"Printing, Stationery & General Office Expenses",Internal Printing ,03/08/2017,219923,832.98,Ricoh Uk Ltd
Planning & Development,Economic Development,Estates and Economic Development ,Supplies & Services,Grants & Subscriptions,Grants,10/08/2017,220852,1000,Personal data - Data Protection Act 1998
Cultural & Related,Open Spaces,Environmental,Supplies & Services,Miscellaneous Expenses,Waste Collection,24/08/2017,221033,843.04,Raymond Brown Minerals & Recycling Ltd
Housing Services,Housing Benefits ,Revenues,Supplies & Services,Communications & Computing,Software Maintenance,24/08/2017,221549,850,Northgate Public Services Uk Ltd
Environmental & Regulatory,Regulatory Services,Housing and Environmental Health ,Supplies & Services,Miscellaneous Expenses,Kennel fees,17/08/2017,221301,870,Anton Vets Ltd
Central Services to the Public,Management & Support Services,Finance,Supplies & Services,"Printing, Stationery & General Office Expenses",Postage Costs,31/08/2017,222033,880.43,Whistl Uk Ltd
Central Services to the Public,Management & Support Services,Estates and Economic Development ,Third Party Payments,Other Establishments,Private Contractors,24/08/2017,221554,923.65,Doorgear Limited
Central Services to the Public,Management & Support Services,Finance,Supplies & Services,"Printing, Stationery & General Office Expenses",Postage Costs,10/08/2017,220471,927.88,Whistl Uk Ltd
Central Services,Corporate & Democratic Core,Corporate & Democratic,Supplies & Services,Communications & Computing,Land Line Telephone Charges,03/08/2017,218753,936.77,Invicta Lifeline Ltd
Planning & Development,Development Control,Planning & Building,Supplies & Services,"Equipment, Furniture & Materials",Purchase Equip + Materials,10/08/2017,220265,166.3,Lyreco Uk Ltd
Planning & Development,Development Control,Planning & Building,Supplies & Services,"Printing, Stationery & General Office Expenses",Stationery,10/08/2017,220265,584.12,Lyreco Uk Ltd
Planning & Development,Development Control,Planning & Building,Supplies & Services,"Printing, Stationery & General Office Expenses",Print Consumables,10/08/2017,220265,191.63,Lyreco Uk Ltd
Central Services to the Public,Management & Support Services,Estates and Economic Development ,Third Party Payments,Other Establishments,Contract Catering,10/08/2017,220848,947.55,Edwards And Ward Ltd
"Highways, Roads & Transport",Parking Services,Plan Pol & Transport,Supplies & Services,Services,Professional Fees,17/08/2017,220850,1139.2,Patrol
Environmental & Regulatory,Waste management,Environmental,Transport Related Expenditure,Direct Transport Costs,Repair Materials,24/08/2017,221342,162.22,Dennis Eagle Ltd
Central Services to the Public,Management & Support Services,Environmental,Transport Related Expenditure,Direct Transport Costs,Repair Materials,24/08/2017,221342,788.13,Dennis Eagle Ltd
Planning & Development,Economic Development,Estates and Economic Development ,Supplies & Services,Services,Training Courses,03/08/2017,219914,1225,Lynx Uk Ltd
Environmental & Regulatory,Regulatory Services,Housing and Environmental Health ,Supplies & Services,Services,Professional Advice,24/08/2017,221807,1032.5,Dc Commercial Solicitors
Planning & Development,Economic Development,Estates and Economic Development ,Supplies & Services,Services,Training Courses,31/08/2017,221540,1260,Active Staff Ltd
Environmental & Regulatory,Waste management,Environmental,Employees,Indirect Employee Expenses,Agency Staff - Waged Posts,17/08/2017,219057,1056.88,Simple Recruitment Services Ltd
Cultural & Related,Culture & Heritage,Community and Leisure ,Supplies & Services,"Printing, Stationery & General Office Expenses",Licences / Affiliation Fees,24/08/2017,221340,1069.37,Performing Right Society Ltd
Central Services to the Public,Management & Support Services,Finance,Supplies & Services,"Printing, Stationery & General Office Expenses",Postage Costs,24/08/2017,221296,1088.18,Whistl Uk Ltd
Central Services to the Public,Management & Support Services,Estates and Economic Development ,Supplies & Services,"Equipment, Furniture & Materials",Purchase Materials (Job Cost),24/08/2017,221545,1094.9,Direct Uk Deals Ltd
Planning & Development,Development Control,Planning & Building,Supplies & Services,Communications & Computing,Computer Hardware,31/08/2017,221797,1100,Idox Solutions
Central Services to the Public,Management & Support Services,Estates and Economic Development ,Third Party Payments,Other Establishments,Private Contractors,03/08/2017,220159,1115,Spear Electrical Limited
Central Services to the Public,Management & Support Services,Legal & Democratic,Employees,Indirect Employee Expenses,Temporary Staff,03/08/2017,219982,1350,Cognize Consultancy Limited
Central Services to the Public,Management & Support Services,Legal & Democratic,Employees,Indirect Employee Expenses,Temporary Staff,03/08/2017,219983,1350,Cognize Consultancy Limited
Central Services to the Public,Management & Support Services,Legal & Democratic,Employees,Indirect Employee Expenses,Temporary Staff,03/08/2017,219984,1350,Cognize Consultancy Limited
Central Services to the Public,Management & Support Services,Legal & Democratic,Employees,Indirect Employee Expenses,Temporary Staff,03/08/2017,220176,1350,Cognize Consultancy Limited
Central Services to the Public,Management & Support Services,Legal & Democratic,Employees,Indirect Employee Expenses,Temporary Staff,31/08/2017,222090,1350,Cognize Consultancy Limited
Central Services to the Public,Management & Support Services,Legal & Democratic,Employees,Indirect Employee Expenses,Temporary Staff,31/08/2017,222091,1350,Cognize Consultancy Limited
Central Services to the Public,Management & Support Services,Legal & Democratic,Employees,Indirect Employee Expenses,Temporary Staff,31/08/2017,222092,1350,Cognize Consultancy Limited
Cultural & Related,Recreation & Sport,Community and Leisure ,Supplies & Services,Grants and subscriptions,Capital Grants,03/08/2017,220284,1363.2,Picket Twenty Community Association
Environmental & Regulatory,Regulatory Services,Housing and Environmental Health ,Employees,Indirect Employee Expenses,Temporary Staff,24/08/2017,221567,1152,Buckingham Futures Limited
Cultural & Related,Open Spaces,Environmental,Supplies & Services,"Equipment, Furniture & Materials",Purchase Equip + Materials,03/08/2017,219912,1153.6,Nomix Enviro
Environmental & Regulatory,Regulatory Services,Housing and Environmental Health ,Employees,Indirect Employee Expenses,Temporary Staff,10/08/2017,220580,1168,Buckingham Futures Limited
Central Services to the Public,Management & Support Services,Estates and Economic Development ,Third Party Payments,Other Establishments,Private Contractors,31/08/2017,222054,1178.88,Smrs Fabrication & Welding Ltd
Environmental & Regulatory,Regulatory Services,Housing and Environmental Health ,Employees,Indirect Employee Expenses,Temporary Staff,17/08/2017,221076,1216,Buckingham Futures Limited
Central Services to the Public,Management & Support Services,Legal & Democratic,Employees,Indirect Employee Expenses,Agency Staff - Waged Posts,03/08/2017,219430,1226.25,Venn Group Ltd
Cultural & Related,Open Spaces,Community and Leisure ,Premises related Expenditure,Grounds Maintenance Costs,Gm - Additional Works,17/08/2017,221065,1228,Streetmaster (South Wales) Ltd
Cultural & Related,Culture & Heritage,Community and Leisure ,Premises related Expenditure,Energy Costs,Electricity,31/08/2017,222049,1031.1,Sparsholt College Hampshire
Cultural & Related,Culture & Heritage,Community and Leisure ,Premises related Expenditure,Water Services,Water And Sewerage Charges,31/08/2017,222049,254.34,Sparsholt College Hampshire
Planning & Development,Economic Development,Estates and Economic Development ,Supplies & Services,Services,Training Courses,31/08/2017,222262,1500,River View Tax & Accountancy Ltd
Environmental & Regulatory,Regulatory Services,Housing and Environmental Health ,Supplies & Services,Grants and subscriptions,Capital Grants,24/08/2017,221717,1501.62,Pm Design
Central Services to the Public,Management & Support Services,Legal & Democratic,Employees,Indirect Employee Expenses,Agency Staff - Waged Posts,03/08/2017,219121,1260,Venn Group Ltd
Cultural & Related,Open Spaces,Environmental,Supplies & Services,"Equipment, Furniture & Materials",Purchase Equip + Materials,31/08/2017,222254,1305.65,Spaldings (Uk) Limited
Central Services to the Public,Management & Support Services,Estates and Economic Development ,Third Party Payments,Other Establishments,Private Contractors,17/08/2017,221057,1330,Sonic Scaffolding 2000 Ltd
Central Services to the Public,Management & Support Services,Legal & Democratic,Employees,Indirect Employee Expenses,Agency Staff - Waged Posts,17/08/2017,220570,1350,Venn Group Ltd
Environmental & Regulatory,Waste management,Environmental,Employees,Indirect Employee Expenses,Agency Staff - Waged Posts,17/08/2017,219427,1395.2,Simple Recruitment Services Ltd
Planning & Development,Planning Policy,Plan Pol & Transport,Supplies & Services,Communications & Computing,Computer Software,10/08/2017,218142,1430,Haymarket Media Group
Central Services to the Public,Local Tax Collection,Revenues,Supplies & Services,Miscellaneous Expenses,All Pay Fees,10/08/2017,220273,1465.23,Allpay Limited
Central Services to the Public,Management & Support Services,Finance,Supplies & Services,"Printing, Stationery & General Office Expenses",Postage Costs,17/08/2017,220842,1531.71,Whistl Uk Ltd
Environmental & Regulatory,Regulatory Services,Estates and Economic Development ,Premises related Expenditure,Water Services,Water And Sewerage Charges,10/08/2017,220607,1844.82,Business Stream
"Highways, Roads & Transport",Parking Services,Plan Pol & Transport,Supplies & Services,Services,Legal Fees,10/08/2017,220869,1900,Hmcs
Central Services to the Public,Management & Support Services,Legal & Democratic,Employees,Indirect Employee Expenses,Agency Staff - Waged Posts,24/08/2017,221551,1597.5,Venn Group Ltd
Central Services to the Public,Management & Support Services,Legal & Democratic,Supplies & Services,Services,Training Courses,24/08/2017,221844,1600,The Law Society
Planning & Development,Development Control,Planning & Building,Supplies & Services,"Printing, Stationery & General Office Expenses",Photocopying Costs,24/08/2017,221312,1601.1,Ricoh Uk Ltd
Cultural & Related,Open Spaces,Community and Leisure ,Supplies & Services,"Equipment, Furniture & Materials",Purchase Equip + Materials,17/08/2017,220655,1617,Broxap Limited (Stadia Sports )
"Highways, Roads & Transport",Highways and roads - maintenance,Plan Pol & Transport,Supplies & Services,"Equipment, Furniture & Materials",Purchase Equip + Materials,31/08/2017,222037,1650,Coupe Line
Central Services to the Public,Management & Support Services,Estates and Economic Development ,Third Party Payments,Other Establishments,Contract Catering,10/08/2017,220613,1651.07,Edwards And Ward Ltd
Planning & Development,Economic Development,Estates and Economic Development ,Supplies & Services,Grants & Subscriptions,Grants,31/08/2017,222201,2000,Basingstoke Consortium Ltd
"Highways, Roads & Transport",Highways and roads - maintenance,Plan Pol & Transport,Premises related Expenditure,Repairs Alterations & Maintenance of Buildings,Highways Repairs,03/08/2017,219041,1676.26,Signway Supplies (Datchet Ltd)
Planning & Development,Development Control,Planning & Building,Employees,Indirect Employee Expenses,Temporary Staff,31/08/2017,222266,2046,Personal data - Data Protection Act 1998
Central Services to the Public,Management & Support Services,Estates and Economic Development ,Third Party Payments,Other Establishments,Private Contractors,17/08/2017,221101,1708.24,Andover Glass Works Ltd
Central Services to the Public,Management & Support Services,Legal & Democratic,Employees,Indirect Employee Expenses,Agency Staff - Waged Posts,17/08/2017,221049,1732.5,Venn Group Ltd
Central Services to the Public,Management & Support Services,Estates and Economic Development ,Supplies & Services,Services,Professional Advice,03/08/2017,219312,1732.5,Dc Commercial Solicitors
Environmental & Regulatory,Regulatory Services,Housing and Environmental Health ,Employees,Indirect Employee Expenses,Temporary Staff,31/08/2017,222057,1740.4,Buckingham Futures Limited
Central Services to the Public,Management & Support Services,Estates and Economic Development ,Premises related Expenditure,Energy Costs,Gas,24/08/2017,221318,1742.24,Total Gas & Power Ltd
External Trading Accounts,Property Investments,Estates and Economic Development ,Third Party Payments,Private contractors,Main Contractor Costs,17/08/2017,221343,1746.61,Options Flooring Ltd
Cultural & Related,Open Spaces,Community and Leisure ,Supplies & Services,"Equipment, Furniture & Materials",Purchase Equip + Materials,17/08/2017,216658,2100,Village Sensation
Central Services to the Public,Management & Support Services,Community and Leisure ,Supplies & Services,Services,Training Courses,17/08/2017,218226,30,All Things Training
Cultural & Related,Open Spaces,Environmental,Supplies & Services,Services,Training Courses,17/08/2017,218226,904.64,All Things Training
Environmental & Regulatory,Street Cleansing (not chargeable to Highways),Environmental,Supplies & Services,Services,Training Courses,17/08/2017,218226,747.8,All Things Training
Environmental & Regulatory,Waste management,Environmental,Supplies & Services,Services,Training Courses,17/08/2017,218226,149.56,All Things Training
Environmental & Regulatory,Street Cleansing (not chargeable to Highways),Environmental,Employees,Indirect Employee Expenses,Agency Staff - Waged Posts,03/08/2017,220254,1839.4,365 Supply Ltd
Cultural & Related,Open Spaces,Environmental,Supplies & Services,"Equipment, Furniture & Materials",Purchases for playgrounds,31/08/2017,220577,1939.14,Gb Sport & Leisure Uk Ltd
Cultural & Related,Open Spaces,Community and Leisure ,Premises related Expenditure,Repairs Alterations & Maintenance of Buildings,Estates premises costs - AMP,03/08/2017,219331,478.93,Avs Fencing Supplies Ltd
Cultural & Related,Open Spaces,Community and Leisure ,Premises related Expenditure,Repairs Alterations & Maintenance of Buildings,Estates premises costs - AMP,03/08/2017,219331,1582.15,Avs Fencing Supplies Ltd
Cultural & Related,Recreation & Sport,Community and Leisure ,Third Party Payments,Private contractors,Main Contractor Costs,10/08/2017,220649,2075,Ashdown Site Investigation Ltd
Environmental & Regulatory,Community Development,Community and Leisure ,Supplies & Services,Grants & Subscriptions,Subscriptions,03/08/2017,218642,2494,Hampshire County Council
Planning & Development,Development Control,Planning & Building,Employees,Indirect Employee Expenses,Temporary Staff,31/08/2017,222263,2542,Personal data - Data Protection Act 1998
Planning & Development,Development Control,Planning & Building,Employees,Indirect Employee Expenses,Temporary Staff,31/08/2017,222265,2650.5,Personal data - Data Protection Act 1998
Central Services to the Public,Local Tax Collection,Revenues,Supplies & Services,Services,Professional Fees,10/08/2017,220574,2230,Inform Cpi Ltd
Environmental & Regulatory,Waste management,Environmental,Employees,Indirect Employee Expenses,Agency Staff - Waged Posts,17/08/2017,221235,2272.53,365 Supply Ltd
Environmental & Regulatory,Regulatory Services,Housing and Environmental Health ,Supplies & Services,Grants and subscriptions,Capital Grants,03/08/2017,220285,2740.71,Bst Bathroom Installations & Plumbing Servs
Cultural & Related,Culture & Heritage,Community and Leisure ,Supplies & Services,Miscellaneous Expenses,Booking Of Acts,24/08/2017,221828,2295.34,The Circus Of Horrors Ltd
Environmental & Regulatory,Regulatory Services,Housing and Environmental Health ,Supplies & Services,Grants and subscriptions,Capital Grants,17/08/2017,221348,2757.5,Lifestyle Solutions
Central Services to the Public,Management & Support Services,Estates and Economic Development ,Supplies & Services,Services,Professional Advice,10/08/2017,220566,2300,Dc Commercial Solicitors
Environmental & Regulatory,Regulatory Services,Housing and Environmental Health ,Supplies & Services,Grants and subscriptions,Capital Grants,17/08/2017,221349,2872.57,Acer Renovations Ltd
Planning & Development,Development Control,Planning & Building,Employees,Indirect Employee Expenses,Temporary Staff,31/08/2017,222261,2883,Personal data - Data Protection Act 1998
Planning & Development,Development Control,Planning & Building,Employees,Indirect Employee Expenses,Temporary Staff,31/08/2017,221559,2409.81,Oyster Partnership
Planning & Development,Development Control,Planning & Building,Employees,Indirect Employee Expenses,Temporary Staff,03/08/2017,219328,2424.32,Oyster Partnership
Environmental & Regulatory,Regulatory Services,Housing and Environmental Health ,Supplies & Services,Grants and subscriptions,Capital Grants,24/08/2017,221836,2914.55,Spc Bathrooms Ltd
Central Services to the Public,Management & Support Services,Plan Pol & Transport,Premises related Expenditure,Repairs Alterations & Maintenance of Buildings,General Repairs,24/08/2017,221692,2450,Total Surveys Ltd
Environmental & Regulatory,Waste management,Environmental,Employees,Indirect Employee Expenses,Agency Staff - Waged Posts,31/08/2017,222030,2466.37,365 Supply Ltd
Planning & Development,Development Control,Planning & Building,Supplies & Services,Communications & Computing,Computer Hardware,31/08/2017,221804,1475,Idox Solutions
Planning & Development,Development Control,Planning & Building,Supplies & Services,Communications & Computing,Computer Software,31/08/2017,221804,1000,Idox Solutions
Cultural & Related,Recreation & Sport,Community and Leisure ,Supplies & Services,Services,Professional Fees,24/08/2017,221578,2523.5,Blake Morgan Llp
Cultural & Related,Recreation & Sport,Community and Leisure ,Supplies & Services,Grants and subscriptions,Capital Grants,30/08/2017,222208,3034.4,Romsey Men'S Shed
Central Services to the Public,Management & Support Services,Estates and Economic Development ,Supplies & Services,"Equipment, Furniture & Materials",Purchase Materials (Job Cost),17/08/2017,221231,2544,Office Furniture Online
Central Services to the Public,Management & Support Services,Housing and Environmental Health ,Supplies & Services,Grants & Subscriptions,Subscriptions,31/08/2017,222060,2550,Thomson Reuters
Environmental & Regulatory,Street Cleansing (not chargeable to Highways),Environmental,Employees,Indirect Employee Expenses,Agency Staff - Waged Posts,31/08/2017,222052,2566.7,365 Supply Ltd
Cultural & Related,Recreation & Sport,Community and Leisure ,Supplies & Services,Grants and subscriptions,Capital Grants,24/08/2017,221719,3097,The Bridge
Central Services to the Public,Management & Support Services,Environmental,Transport Related Expenditure,Direct Transport Costs,Diesel,17/08/2017,221134,2592.52,Hall Fuels
Central Services to the Public,Management & Support Services,Environmental,Transport Related Expenditure,Direct Transport Costs,Diesel,17/08/2017,221300,2619.3,Hall Fuels
External Trading Accounts,Economic Development,Estates and Economic Development ,Premises related Expenditure,Repairs Alterations & Maintenance of Buildings,Planned Maintenance - Non Est,03/08/2017,219647,627.44,Spheretech Ltd
Cultural & Related,Culture & Heritage,Estates and Economic Development ,Premises related Expenditure,Repairs Alterations & Maintenance of Buildings,Planned Maintenance - Non Est,03/08/2017,219647,504.46,Spheretech Ltd
Central Services to the Public,Management & Support Services,Estates and Economic Development ,Premises related Expenditure,Repairs Alterations & Maintenance of Buildings,Planned Maintenance - Non Est,03/08/2017,219647,829.73,Spheretech Ltd
Central Services to the Public,Management & Support Services,Estates and Economic Development ,Premises related Expenditure,Repairs Alterations & Maintenance of Buildings,Planned Maintenance - Non Est,03/08/2017,219647,266.25,Spheretech Ltd
Cultural & Related,Culture & Heritage,Community and Leisure ,Premises related Expenditure,Repairs Alterations & Maintenance of Buildings,Planned Maintenance - Non Est,03/08/2017,219647,442.97,Spheretech Ltd
Central Services to the Public,Management & Support Services,Environmental,Transport Related Expenditure,Direct Transport Costs,Red Derv,03/08/2017,219422,2691.29,Hall Fuels
Central Services to the Public,Management & Support Services,Environmental,Transport Related Expenditure,Direct Transport Costs,Diesel,17/08/2017,221133,2755.5,Hall Fuels
Planning & Development,Building Control,Planning & Building,Third Party Payments,Commuted Sum,s106 Developer contributions,03/08/2017,220152,3315.01,Personal data - Data Protection Act 1998
Central Services to the Public,Management & Support Services,IT,Supplies & Services,Services,Project Consultancy - Systems,10/08/2017,220610,2800,Capita Business Services
Cultural & Related,Open Spaces,Community and Leisure ,Premises related Expenditure,Repairs Alterations & Maintenance of Buildings,Estates premises costs - AMP,17/08/2017,221089,384.54,Gripdeck Uk Llp
Cultural & Related,Open Spaces,Community and Leisure ,Premises related Expenditure,Repairs Alterations & Maintenance of Buildings,Estates premises costs - AMP,17/08/2017,221089,1900.08,Gripdeck Uk Llp
Cultural & Related,Open Spaces,Community and Leisure ,Premises related Expenditure,Repairs Alterations & Maintenance of Buildings,Estates premises costs - AMP,17/08/2017,221089,572.9,Gripdeck Uk Llp
Environmental & Regulatory,Street Cleansing (not chargeable to Highways),Environmental,Transport Related Expenditure,Direct Transport Costs,Repair Materials,10/08/2017,220674,2986.86,Adams Morey Ltd
Environmental & Regulatory,Waste management,Environmental,Supplies & Services,"Equipment, Furniture & Materials",Purchase Equip + Materials,24/08/2017,221800,3085.5,Cammegh Davies Fleming
External Trading Accounts,Economic Development,Estates and Economic Development ,Premises related Expenditure,Water Services,Water And Sewerage Charges,03/08/2017,220239,3704.31,Business Stream
Central Services to the Public,Management & Support Services,IT,Supplies & Services,Communications & Computing,Hardware Maintenance,17/08/2017,221107,3169.59,Uninterruptible Power Supplies Ltd
External Trading Accounts,Economic Development,Estates and Economic Development ,Premises related Expenditure,Energy Costs,Electricity,17/08/2017,220861,3188.67,Npower
Planning & Development,Community Development,Estates and Economic Development ,Supplies & Services,"Equipment, Furniture & Materials",Equipment Hire,24/08/2017,221788,3878.5,Marston Robing Limited
Cultural & Related,Open Spaces,Community and Leisure ,Supplies & Services,Grants & Subscriptions,Grants,17/08/2017,221070,4000,The Woodland Trust
Environmental & Regulatory,Regulatory Services,Housing and Environmental Health ,Employees,Indirect Employee Expenses,Temporary Staff,03/08/2017,219655,3552,Buckingham Futures Limited
Cultural & Related,Culture & Heritage,Community and Leisure ,Supplies & Services,Miscellaneous Expenses,Booking Of Acts,24/08/2017,221824,3555,Off The Kerb Productions
Central Services to the Public,Management & Support Services,Revenues,Supplies & Services,Communications & Computing,Computer Software,10/08/2017,219292,3601.12,Northgate Public Services Uk Ltd
Central Services to the Public,Elections,Legal & Democratic,Supplies & Services,"Printing, Stationery & General Office Expenses",Postage Costs,03/08/2017,219102,4321.69,Financial Data Management Plc
Central Services to the Public,Management & Support Services,Environmental,Transport Related Expenditure,Direct Transport Costs,Diesel,17/08/2017,221132,3673.08,Hall Fuels
"Highways, Roads & Transport",Parking Services,Plan Pol & Transport,Premises related Expenditure,Repairs Alterations & Maintenance of Buildings,Car Park General Repairs,31/08/2017,222039,3693.1,Coupe Line
External Trading Accounts,Business Parks,Estates and Economic Development ,Premises related Expenditure,Repairs Alterations & Maintenance of Buildings,Building Maint - Non Estates,24/08/2017,221518,3843.83,Clc Contractors Ltd
Environmental & Regulatory,Regulatory Services,Estates and Economic Development ,Third Party Payments,Other Establishments,Private Contractors,31/08/2017,222270,3870.75,Wetton Cleaning Services Ltd
Central Services to the Public,Management & Support Services,Environmental,Transport Related Expenditure,Direct Transport Costs,Diesel,24/08/2017,221577,3882.63,Hall Fuels
Central Services to the Public,Elections,Legal & Democratic,Supplies & Services,"Printing, Stationery & General Office Expenses",External Printing,03/08/2017,220040,4743.94,Financial Data Management Plc
Central Services to the Public,Management & Support Services,Environmental,Transport Related Expenditure,Direct Transport Costs,Diesel,03/08/2017,219420,4024.16,Hall Fuels
Planning & Development,Community Development,Community and Leisure ,Supplies & Services,Grants & Subscriptions,Grants,17/08/2017,221335,4961,Bridge Street Methodist Church
Environmental & Regulatory,Street Cleansing (not chargeable to Highways),Environmental,Transport Related Expenditure,Direct Transport Costs,Tyres,10/08/2017,220470,891.26,Ats Euromaster Limited
Environmental & Regulatory,Waste management,Environmental,Transport Related Expenditure,Direct Transport Costs,Tyres,10/08/2017,220470,2377.45,Ats Euromaster Limited
Central Services to the Public,Management & Support Services,Environmental,Transport Related Expenditure,Direct Transport Costs,Tyres,10/08/2017,220470,884.33,Ats Euromaster Limited
Central Services to the Public,Management & Support Services,Environmental,Transport Related Expenditure,Direct Transport Costs,Diesel,17/08/2017,221136,4166.55,Hall Fuels
Central Services to the Public,Local Land Charges,Legal & Democratic,Supplies & Services,Miscellaneous Expenses,Land Charges Fees,10/08/2017,220845,4197.75,Hampshire County Council
Central Services to the Public,Management & Support Services,Estates and Economic Development ,Supplies & Services,"Equipment, Furniture & Materials",Purchase Furniture,31/08/2017,221787,4272.58,Spectrum Workplace Llp
Cultural & Related,Open Spaces,Environmental,Supplies & Services,Miscellaneous Expenses,Vehicle insurance claims,24/08/2017,221741,215,Zurich Municipal
Environmental & Regulatory,Waste management,Environmental,Supplies & Services,Miscellaneous Expenses,Vehicle insurance claims,24/08/2017,221741,5000,Zurich Municipal
Central Services to the Public,Management & Support Services,Estates and Economic Development ,Third Party Payments,Private contractors,Main Contractor Costs,17/08/2017,221061,4500,Real Estate Strategies Ltd
Planning & Development,Development Control,Planning & Building,Employees,Indirect Employee Expenses,Temporary Staff,10/08/2017,220664,5700,Hampshire Planning Limited
"Highways, Roads & Transport",Parking Services,Plan Pol & Transport,Supplies & Services,Services,Professional Fees,03/08/2017,218295,4892.12,Keyline Chartered Security Ltd
"Highways, Roads & Transport",Parking Services,Plan Pol & Transport,Supplies & Services,Services,Professional Fees,10/08/2017,220661,4892.12,Keyline Chartered Security Ltd
Environmental & Regulatory,Street Cleansing (not chargeable to Highways),Environmental,Supplies & Services,"Equipment, Furniture & Materials",Purchase Equip + Materials,31/08/2017,221798,4951.6,Glasdon Uk Ltd
Planning & Development,Building Control,Planning & Building,Transport Related Expenditure,Contract Hire and Operating Leases,Officer lease cars,17/08/2017,221034,2999.94,Arval Uk Ltd
Planning & Development,Building Control,Planning & Building,Transport Related Expenditure,Contract Hire and Operating Leases,Officer lease cars,17/08/2017,221034,2999.94,Arval Uk Ltd
Cultural & Related,Open Spaces,Environmental,Supplies & Services,Communications & Computing,Computer Software,10/08/2017,219085,5600,Public Sector Software Ltd
External Trading Accounts,Property Investments,Estates and Economic Development ,Supplies & Services,Services,Legal Fees,24/08/2017,221714,5673,Dentons Ukmea Llp
Cultural & Related,Open Spaces,Community and Leisure ,Premises related Expenditure,Grounds Maintenance Costs,Non Contract Tree Works,24/08/2017,220573,625.68,Gristwood & Toms Ltd
Cultural & Related,Open Spaces,Community and Leisure ,Premises related Expenditure,Repairs Alterations & Maintenance of Buildings,Estates premises costs - AMP,24/08/2017,220573,4699.12,Gristwood & Toms Ltd
"Highways, Roads & Transport",Parking Services,Plan Pol & Transport,Premises related Expenditure,Grounds Maintenance Costs,Grounds Maintenance Contracts,24/08/2017,220573,359.78,Gristwood & Toms Ltd
Cultural & Related,Open Spaces,Community and Leisure ,Premises related Expenditure,Grounds Maintenance Costs,Gm - Additional Works,10/08/2017,220565,1117.81,Personal data - Data Protection Act 1998
Cultural & Related,Open Spaces,Community and Leisure ,Premises related Expenditure,Repairs Alterations & Maintenance of Buildings,Estates premises costs - AMP,10/08/2017,220565,5024.19,Personal data - Data Protection Act 1998
Cultural & Related,Culture & Heritage,Community and Leisure ,Supplies & Services,Services,Project Consultancy - Policy,17/08/2017,221229,6495,Fool'S Paradise Ltd
Environmental & Regulatory,Regulatory Services,Housing and Environmental Health ,Supplies & Services,Grants and subscriptions,Capital Grants,31/08/2017,222288,8000,Personal data - Data Protection Act 1998
Central Services to the Public,Management & Support Services,Estates and Economic Development ,Premises related Expenditure,Repairs Alterations & Maintenance of Buildings,Estates premises costs - AMP,03/08/2017,219326,6669,C & W Industrial Roofing Ltd
Central Services to the Public,Management & Support Services,Finance,Supplies & Services,"Printing, Stationery & General Office Expenses",Postage Costs,10/08/2017,220600,8080,Pitney Bowes Limited
Cultural & Related,Recreation & Sport,Community and Leisure ,Supplies & Services,Services,Professional Fees,17/08/2017,220858,7096.1,Blake Morgan Llp
Environmental & Regulatory,Regulatory Services,Housing and Environmental Health ,Supplies & Services,Grants and subscriptions,Capital Grants,17/08/2017,221351,9265,Astor-Bannerman (Medical) Ltd
Environmental & Regulatory,Waste management,Environmental,Supplies & Services,Miscellaneous Expenses,Recycling Bank Emptying,24/08/2017,218845,7880.12,Fcc Recycling (Uk) Ltd
Central Services to the Public,Elections,Legal & Democratic,Supplies & Services,"Printing, Stationery & General Office Expenses",External Printing,24/08/2017,221712,9990.96,Financial Data Management Plc
Central Services to the Public,Management & Support Services,Estates and Economic Development ,Third Party Payments,Private contractors,Main Contractor Costs,17/08/2017,221110,8717.08,M & J (Construction & Roofing) Ltd
Cultural & Related,Recreation & Sport,Community and Leisure ,Supplies & Services,Grants and subscriptions,Capital Grants,17/08/2017,221333,10718,Andover Bmx Club
Cultural & Related,Open Spaces,Community and Leisure ,Premises related Expenditure,Repairs Alterations & Maintenance of Buildings,Estates premises costs - AMP,10/08/2017,220023,9726,Fernden Construction (Winchester) Ltd
Cultural & Related,Recreation & Sport,Community and Leisure ,Supplies & Services,"Equipment, Furniture & Materials",Purchase Equip + Materials,03/08/2017,217950,10250,Badminton England
Central Services to the Public,Management & Support Services,Estates and Economic Development ,Premises related Expenditure,Repairs Alterations & Maintenance of Buildings,Estates premises costs - AMP,17/08/2017,221236,10306.41,Rocon Contractors Ltd
Cultural & Related,Recreation & Sport,Community and Leisure ,Supplies & Services,Grants and subscriptions,Capital Grants,10/08/2017,220287,12671,Braishfield Village Hall
Central Services to the Public,Elections,Legal & Democratic,Supplies & Services,"Printing, Stationery & General Office Expenses",External Printing,24/08/2017,221710,12874.2,Financial Data Management Plc
Central Services to the Public,Management & Support Services,Community and Leisure ,Employees,Direct Employee Expenses,Basic Salaries,03/08/2017,219098,11804.17,Romsey Community School
Central Services to the Public,Management & Support Services,Community and Leisure ,Transport Related Expenditure,Direct Transport Costs,Non-Employee Mileage Costs,03/08/2017,219098,356.4,Romsey Community School
Central Services to the Public,Management & Support Services,Community and Leisure ,Supplies & Services,Communications & Computing,Land Line Telephone Charges,03/08/2017,219098,150,Romsey Community School
Central Services to the Public,Management & Support Services,Community and Leisure ,Supplies & Services,Catering,Catering,03/08/2017,219098,327.4,Romsey Community School
Central Services to the Public,Management & Support Services,Community and Leisure ,Supplies & Services,Miscellaneous Expenses,Promotions / Special Events,03/08/2017,219098,250,Romsey Community School
Central Services to the Public,Elections,Legal & Democratic,Supplies & Services,"Printing, Stationery & General Office Expenses",External Printing,03/08/2017,220041,13230.79,Financial Data Management Plc
Central Services to the Public,Management & Support Services,Finance,Employees,Direct Employee Expenses,Shared service staffing costs,24/08/2017,221550,11090,Gosport Borough Council
Central Services to the Public,Elections,Legal & Democratic,Supplies & Services,"Printing, Stationery & General Office Expenses",External Printing,24/08/2017,221711,13707,Financial Data Management Plc
External Trading Accounts,Property Investments,Estates and Economic Development ,Third Party Payments,Private contractors,Main Contractor Costs,31/08/2017,222203,11929.73,Wessex Ecoenergy Ltd
Central Services to the Public,Management & Support Services,Estates and Economic Development ,Supplies & Services,Services,Professional Fees,17/08/2017,218855,13570.9,Hampshire County Council
"Highways, Roads & Transport",Highways and roads - maintenance,Plan Pol & Transport,Premises related Expenditure,Repairs Alterations & Maintenance of Buildings,Highways Repairs,31/08/2017,222179,13950,Personal data - Data Protection Act 1998
Central Services,Corporate & Democratic Core,Corporate & Democratic,Supplies & Services,Miscellaneous Expenses,External Audit Fees,24/08/2017,220646,15953,Ernst & Young Llp
Cultural & Related,Recreation & Sport,Community and Leisure ,Supplies & Services,Grants and subscriptions,Capital Grants,31/08/2017,222282,19597.5,Winton Community Academy
Environmental & Regulatory,Regulatory Services,Housing and Environmental Health ,Supplies & Services,Grants and subscriptions,Capital Grants,17/08/2017,221352,20950,Sahar Building Services Ltd
Central Services to the Public,Elections,Legal & Democratic,Supplies & Services,Communications & Computing,Computer Software,10/08/2017,220466,18340,Xpress Software Solutions Ltd
Central Services to the Public,Local Tax Collection,Revenues,Supplies & Services,Communications & Computing,Software Maintenance,31/08/2017,222258,4484.04,Northgate Public Services Uk Ltd
Central Services to the Public,Local Tax Collection,Revenues,Supplies & Services,Communications & Computing,Software Maintenance,31/08/2017,222258,7473.41,Northgate Public Services Uk Ltd
Housing Services,Housing Benefits ,Revenues,Supplies & Services,Communications & Computing,Software Maintenance,31/08/2017,222258,11957.45,Northgate Public Services Uk Ltd
Central Services to the Public,Local Tax Collection,Revenues,Supplies & Services,Communications & Computing,Software Maintenance,31/08/2017,222258,5978.72,Northgate Public Services Uk Ltd
Central Services to the Public,Elections,Legal & Democratic,Supplies & Services,"Printing, Stationery & General Office Expenses",External Printing,24/08/2017,221709,36046,Financial Data Management Plc
Cultural & Related,Open Spaces,Community and Leisure ,Premises related Expenditure,Grounds Maintenance Costs,Non Contract Tree Works,03/08/2017,216999,20999.35,Gristwood & Toms Ltd
Cultural & Related,Open Spaces,Community and Leisure ,Premises related Expenditure,Repairs Alterations & Maintenance of Buildings,Estates premises costs - AMP,03/08/2017,216999,9495.34,Gristwood & Toms Ltd
"Highways, Roads & Transport",Parking Services,Plan Pol & Transport,Premises related Expenditure,Grounds Maintenance Costs,Grounds Maintenance Contracts,03/08/2017,216999,372.94,Gristwood & Toms Ltd
Central Services to the Public,Management & Support Services,Plan Pol & Transport,Premises related Expenditure,Repairs Alterations & Maintenance of Buildings,General Repairs,24/08/2017,220160,40000,Colas Ltd
Cultural & Related,Culture & Heritage,Community and Leisure ,Third Party Payments,Private contractors,Main Contractor Costs,31/08/2017,222199,50729.25,Russell Play
Cultural & Related,Recreation & Sport,Community and Leisure ,Third Party Payments,Private contractors,Main Contractor Costs,03/08/2017,220168,116788,Places For People Leisure Ltd - Developments
Cultural & Related,Recreation & Sport,Community and Leisure ,Third Party Payments,Private contractors,Main Contractor Costs,31/08/2017,222240,130218.5,Places For People Leisure Ltd - Developments
Cultural & Related,Recreation & Sport,Community and Leisure ,Third Party Payments,Private contractors,Main Contractor Costs,03/08/2017,220238,208761.13,Martin Reynolds Construction
Cultural & Related,Recreation & Sport,Community and Leisure ,Third Party Payments,Private contractors,Main Contractor Costs,03/08/2017,220169,237597.5,Places For People Leisure Ltd - Developments
Cultural & Related,Recreation & Sport,Community and Leisure ,Third Party Payments,Other Establishments,ALC Management Contract-TVL,17/08/2017,221251,272342.92,Total Swimming Ltd
